bitfinex/quotes_SOLUSD_20250222
["timestamp","ask_amount","ask_price","bid_price","bid_amount"]
[1740249198165,0.0001,173.98,173.97,11.46214508]
[1740249200272,0.0001,173.98,173.97,0.03]
[1740249201292,1.5401,173.98,173.97,0.03]
[1740249201465,12.97224508,173.98,173.97,0.03]
[1740249201869,1.5401,173.98,173.97,0.03]
[1740249212511,7.2878,173.98,173.97,0.03]
[1740249212806,18.71994508,173.98,173.97,0.03]
[1740249217171,1.5401,173.98,173.97,0.03]
[1740249218897,0.0001,173.98,173.97,11.46214508]
[1740249222522,0.0001,173.98,173.97,0.03]
[1740249242611,12.99674508,173.98,173.97,0.03]
[1740249243703,18.74444508,173.98,173.97,0.03]
[1740249248631,38.39409394,173.98,173.97,0.03]
[1740249248821,84.12267426,173.98,173.97,0.03]
[1740249249017,20.0,173.95,173.94,0.03]
[1740249249217,51.08179394,173.95,173.94,0.03]
[1740249250427,56.83049394,173.95,173.94,0.03]
[1740249251537,21.17924886,173.93,173.92,0.03]
[1740249251719,36.85139394,173.93,173.92,0.03]
[1740249252812,42.60079394,173.93,173.92,0.03]
[1740249258542,45.42913495,173.93,173.92,0.03]
[1740249259830,20.0,173.89,173.85,0.03]
[1740249260149,11.43214508,173.87,173.85,0.03]
[1740249264324,92.43214508,173.88,173.85,0.03]
[1740249265452,81.0,173.87,173.85,0.03]
[1740249266554,81.0,173.87,173.85,11.46214508]
[1740249266723,81.0,173.87,173.86,11.43214508]
[1740249267345,81.0,173.87,173.85,0.03]
[1740249267535,81.0,173.87,173.86,11.43214508]
[1740249268042,81.0,173.87,173.86,17.18384508]
[1740249270350,81.0,173.9,173.86,17.18384508]
[1740249270657,81.0,173.9,173.89,11.43214508]
[1740249272134,81.0,173.9,173.89,17.18284508]
[1740249274336,81.0,173.94,173.89,17.18284508]
[1740249274528,81.0,173.93,173.92,11.43214508]
[1740249276243,81.0,173.93,173.92,17.18184508]
[1740249280094,81.0,173.93,173.91,11.43214508]
[1740249280363,81.0,173.93,173.9,5.7504]
[1740249280541,81.0,173.93,173.89,17.18274508]
[1740249280856,11.43214508,173.91,173.86,17.18384508]
[1740249281057,81.0,173.92,173.87,11.43214508]
[1740249281239,81.0,173.92,173.88,11.43214508]
[1740249282252,11.43214508,173.91,173.85,11.46214508]
[1740249282448,92.43214508,173.9,173.85,17.21414508]
[1740249284967,81.0,173.89,173.85,17.21414508]
[1740249287658,81.0,173.88,173.85,17.21414508]
[1740249288977,81.0,173.88,173.86,11.43214508]
[1740249290778,81.0,173.88,173.86,17.18384508]
[1740249291074,81.0,173.88,173.86,11.43214508]
[1740249291281,81.0,173.88,173.85,17.21414508]
[1740249291459,81.0,173.88,173.85,0.03]
[1740249292282,81.0,173.87,173.85,0.03]
[1740249297092,98.18354508,173.87,173.85,0.03]
[1740249297472,92.43214508,173.86,173.85,0.03]
[1740249299761,81.0,173.86,173.85,0.03]
[1740249301056,13.04874508,173.89,173.85,0.03]
[1740249301463,13.04874508,173.89,173.85,5.782]
[1740249302767,1.6166,173.89,173.85,5.782]
[1740249303684,81.0,173.88,173.85,17.21414508]
[1740249303883,81.0,173.88,173.87,11.43214508]
[1740249304068,81.0,173.88,173.86,11.43214508]
[1740249304263,81.0,173.88,173.85,17.21414508]
[1740249304469,81.0,173.88,173.85,11.46214508]
[1740249304666,81.0,173.88,173.85,0.03]
[1740249304869,81.0,173.88,173.85,11.46214508]
[1740249305067,0.063,173.92,173.87,11.43214508]
[1740249305389,81.063,173.92,173.9,11.43214508]
[1740249305891,81.063,173.92,173.89,11.43214508]
[1740249306068,81.063,173.92,173.9,11.43214508]
[1740249306271,81.063,173.92,173.91,11.43214508]
[1740249306873,81.063,173.92,173.91,17.18224508]
[1740249307474,0.063,173.92,173.91,17.18224508]
[1740249308869,0.0001,173.98,173.94,20.0]
[1740249309070,0.0001,173.98,173.97,11.43214508]
[1740249311292,0.0001,173.98,173.97,57.1607254]
[1740249312605,0.0001,173.98,173.97,81.55847426]
[1740249315176,0.0001,173.98,173.97,75.81037426]
[1740249315380,0.0001,173.98,173.97,30.08179394]
[1740249317882,0.0001,173.98,173.97,81.55847426]
[1740249318801,0.0001,173.98,173.97,82.55847426]
[1740249318999,0.063,174.05,174.04,11.43214508]
[1740249321522,0.063,174.05,174.04,10.17214508]
[1740249322112,0.063,174.05,174.04,28.82179394]
[1740249322706,0.063,174.05,174.04,81.29617426]
[1740249323117,81.063,174.12,174.07,20.0]
[1740249323407,81.063,174.12,174.09,11.43214508]
[1740249323590,86.8062,174.12,174.09,11.43214508]
[1740249324182,81.063,174.12,174.09,11.43214508]
[1740249325401,86.8062,174.12,174.09,11.43214508]
[1740249328097,86.8062,174.12,174.07,20.0]
[1740249328326,86.8062,174.12,174.08,20.0]
[1740249328615,86.8062,174.12,174.09,11.43214508]
[1740249329516,0.063,174.12,174.09,11.43214508]
[1740249331897,0.063,174.12,174.09,17.17624508]
[1740249332399,0.063,174.12,174.09,11.43214508]
[1740249337422,0.063,174.12,174.09,17.17624508]
[1740249337823,0.063,174.12,174.09,11.43214508]
[1740249343246,11.49514508,174.12,174.06,11.43214508]
[1740249344537,11.49514508,174.12,174.07,11.43214508]
[1740249344920,11.49514508,174.12,174.06,11.43214508]
[1740249345111,5.7434,174.11,174.06,11.43214508]
[1740249345314,5.8062,174.12,174.09,11.43214508]
[1740249346426,0.063,174.12,174.09,11.43214508]
[1740249349207,0.063,174.12,174.05,1.89159848]
[1740249349208,0.063,174.12,174.08,11.43214508]
[1740249349416,0.063,174.12,174.07,11.43214508]
[1740249349618,17.96174508,174.11,174.05,11.46214508]
[1740249349817,1.5733,174.1,174.05,11.46214508]
[1740249350436,5.7441,174.09,174.05,11.46214508]
[1740249350817,5.7441,174.09,174.07,11.43214508]
[1740249351010,5.7441,174.09,174.06,11.43214508]
[1740249353137,5.7441,174.09,174.05,11.46214508]
[1740249353430,81.0,174.08,174.05,0.03]
[1740249353615,81.0,174.07,174.05,0.03]
[1740249354018,92.43214508,174.07,174.05,0.03]
[1740249354938,5.7451,174.06,174.05,0.03]
[1740249355171,86.7451,174.06,174.05,0.03]
[1740249362931,81.0,174.06,174.05,0.03]
[1740249363331,86.7451,174.06,174.05,0.03]
[1740249367768,98.17724508,174.06,174.05,0.03]
[1740249367932,17.17724508,174.06,174.05,0.03]
[1740249368251,5.7451,174.06,174.05,0.03]
[1740249368824,17.17724508,174.06,174.05,0.03]
[1740249369437,17.24024508,174.06,174.05,0.03]
[1740249388370,0.063,174.06,174.05,0.03]
[1740249388551,11.49514508,174.06,174.05,0.03]
[1740249389567,17.24024508,174.06,174.05,0.03]
[1740249396879,0.063,174.06,174.05,0.03]
[1740249397252,0.063,174.06,174.05,11.46214508]
[1740249398153,0.063,174.06,174.05,30.11179394]
[1740249398656,0.063,174.06,174.05,83.11527426]
[1740249400792,0.063,174.06,174.05,37.38669394]
[1740249401671,0.063,174.06,174.05,83.11527426]
[1740249402559,0.063,174.1,174.09,20.0]
[1740249402764,0.063,174.1,174.09,31.43214508]
[1740249403763,0.063,174.1,174.09,37.17624508]
[1740249404606,0.063,174.1,174.09,31.43214508]
[1740249406397,0.063,174.1,174.09,11.43214508]
[1740249406581,0.063,174.1,174.09,31.43214508]
[1740249409497,0.063,174.1,174.08,15.67214508]
[1740249409701,0.063,174.1,174.06,11.43214508]
[1740249409895,0.063,174.1,174.05,11.46214508]
[1740249410098,0.063,174.1,174.05,0.03]
[1740249410297,0.063,174.1,174.05,11.46214508]
[1740249410792,0.063,174.1,174.06,11.43214508]
[1740249411002,0.063,174.1,174.05,11.46214508]
[1740249411687,11.49514508,174.1,174.05,11.46214508]
[1740249412375,17.17624508,174.09,174.05,0.03]
[1740249412576,81.0,174.08,174.05,0.03]
[1740249412783,17.17624508,174.09,174.05,0.03]
[1740249412784,11.43214508,174.06,174.05,0.03]
[1740249412982,92.43214508,174.06,174.05,0.03]
[1740249414583,98.17724508,174.06,174.05,0.03]
[1740249414998,17.17724508,174.06,174.05,0.03]
[1740249420405,17.17724508,174.06,173.96,11.43214508]
[1740249420406,11.43214508,174.02,173.96,11.43214508]
[1740249420716,11.43214508,174.01,173.96,11.43214508]
[1740249421818,5.7471,174.0,173.96,11.43214508]
[1740249422531,11.43214508,174.01,173.96,11.43214508]
[1740249422532,17.17894508,174.01,173.96,11.43214508]
[1740249425939,98.17894508,174.01,173.96,11.43214508]
[1740249426841,11.43214508,173.99,173.93,11.43214508]
[1740249427050,13.05624508,173.99,173.93,11.43214508]
[1740249427541,13.05624508,173.99,173.94,11.43214508]
[1740249427741,1.6241,173.99,173.94,11.43214508]
[1740249428207,7.3715,173.99,173.94,11.43214508]
[1740249428710,18.80364508,173.99,173.94,11.43214508]
[1740249428910,18.80364508,173.99,173.96,0.03]
[1740249429712,1.6241,173.99,173.96,0.03]
[1740249431905,81.0,173.98,173.96,0.03]
[1740249434225,81.0,173.98,173.97,11.43214508]
[1740249434538,81.0,173.98,173.96,11.46214508]
[1740249435935,81.0,173.98,173.96,0.03]
[1740249437222,98.17994508,173.98,173.96,0.03]
[1740249437826,92.43214508,173.97,173.96,0.03]
[1740249438340,81.0,173.97,173.96,0.03]
[1740249441031,86.7481,173.97,173.96,0.03]
[1740249441648,98.18024508,173.97,173.96,0.03]
[1740249442344,18.72924508,173.97,173.96,0.03]
[1740249442646,24.85744508,173.97,173.96,0.03]
[1740249448818,70.5860254,173.97,173.96,0.03]
[1740249449043,74.8260254,173.97,173.96,0.0001]
[1740249449264,75.8260254,173.97,173.96,0.0001]
[1740249451046,74.8260254,173.97,173.96,0.0001]
[1740249451251,29.09744508,173.97,173.96,0.0001]
[1740249453042,4.24,173.99,173.96,0.0001]
[1740249453246,17.17984508,173.99,173.96,0.0001]
[1740249453634,5.7471,174.0,173.96,0.0001]
[1740249453834,11.43214508,174.0,173.96,0.0001]
[1740249454031,25.01634508,174.01,173.96,0.0001]
[1740249454231,11.43214508,174.0,173.96,0.0001]
[1740249454841,5.7471,174.0,173.96,0.0001]
[1740249455143,17.17924508,174.0,173.96,0.0001]
[1740249455354,19.26954508,174.01,173.96,0.0001]
[1740249455533,13.04274508,174.01,173.96,0.0001]
[1740249455941,13.04274508,174.01,173.96,11.43224508]
[1740249456127,18.78974508,174.01,173.96,11.43224508]
[1740249456328,18.78974508,174.01,173.96,0.0001]
[1740249456751,13.04274508,174.01,173.96,11.43224508]
[1740249457134,13.04274508,174.01,173.96,0.0001]
[1740249457330,81.0,174.0,173.96,11.43224508]
[1740249457930,81.0,174.0,173.99,11.43214508]
[1740249458324,81.0,174.04,173.99,11.43214508]
[1740249458530,81.0,174.03,173.99,11.43214508]
[1740249458745,11.43214508,174.02,173.96,0.0001]
[1740249458937,11.43214508,173.99,173.96,0.0001]
[1740249459241,81.0,173.98,173.96,20.0001]
[1740249459449,11.43214508,174.0,173.96,20.0001]
[1740249460458,11.43214508,173.99,173.96,20.0001]
[1740249460658,92.43214508,173.98,173.96,20.0001]
[1740249460831,92.43214508,173.97,173.96,0.0001]
[1740249461035,11.43214508,173.97,173.96,0.0001]
[1740249462151,17.18024508,173.97,173.96,0.0001]
[1740249462852,5.7467,174.01,173.96,0.0001]
[1740249463059,11.43214508,173.98,173.96,0.0001]
[1740249463859,11.43214508,173.97,173.96,0.0001]
[1740249464836,17.18024508,173.97,173.96,0.0001]
[1740249465452,5.7475,173.99,173.96,0.0001]
[1740249465663,11.43214508,173.97,173.96,0.0001]
[1740249466545,17.18024508,173.97,173.96,0.0001]
[1740249468231,11.43214508,173.99,173.96,0.0001]
[1740249468452,11.43214508,174.0,173.96,0.0001]
[1740249468737,17.17894508,174.01,173.96,0.0001]
[1740249469364,17.17894508,174.01,173.96,11.43224508]
[1740249469962,17.17894508,174.01,173.96,0.0001]
[1740249470439,11.43214508,173.99,173.96,0.0001]
[1740249470641,11.43214508,173.98,173.96,0.0001]
[1740249470841,11.43214508,173.97,173.96,0.0001]
[1740249471658,11.43214508,173.98,173.96,0.0001]
[1740249471964,17.18024508,173.97,173.96,0.0001]
[1740249473266,11.43214508,173.97,173.96,0.0001]
[1740249475170,17.18024508,173.97,173.96,0.0001]
[1740249475377,11.43214508,173.97,173.96,0.0001]
[1740249476247,11.49514508,173.97,173.96,0.0001]
[1740249477965,0.063,173.97,173.96,0.0001]
[1740249481658,11.49514508,173.97,173.96,0.0001]
[1740249484845,0.063,173.97,173.96,0.0001]
[1740249487161,11.49514508,173.97,173.96,0.0001]
[1740249487475,0.063,173.97,173.96,0.0001]
[1740249488956,11.49514508,173.97,173.96,0.0001]
[1740249489166,0.063,173.97,173.96,0.0001]
[1740249490672,11.49514508,173.97,173.96,0.0001]
[1740249491457,0.063,173.97,173.96,0.0001]
[1740249491859,0.063,173.97,173.96,11.43224508]
[1740249492764,0.063,173.97,173.96,17.18064508]
[1740249500295,0.063,173.97,173.96,11.43224508]
[1740249501092,0.063,173.97,173.96,0.0001]
[1740249502575,0.063,173.97,173.96,11.43224508]
[1740249504371,0.063,173.97,173.96,17.18064508]
[1740249505691,0.063,173.97,173.96,35.83029394]
[1740249511111,0.063,173.97,173.96,0.0001]
[1740249512591,11.49514508,173.97,173.96,0.0001]
[1740249513989,17.24324508,173.97,173.96,0.0001]
[1740249515030,11.49514508,173.97,173.96,0.0001]
[1740249515825,0.063,173.97,173.96,0.0001]
[1740249517126,11.49514508,173.97,173.96,0.0001]
[1740249519933,17.24324508,173.97,173.96,0.0001]
[1740249520362,11.49514508,173.97,173.96,0.0001]
[1740249521739,17.24324508,173.97,173.96,0.0001]
[1740249523331,11.49514508,173.97,173.96,0.0001]
[1740249524420,17.24324508,173.97,173.96,0.0001]
[1740249526141,0.063,173.97,173.96,0.0001]
[1740249528124,11.49514508,173.97,173.96,0.0001]
[1740249529647,17.24324508,173.97,173.96,0.0001]
[1740249536655,62.9718254,173.97,173.96,0.0001]
[1740249536830,67.2118254,173.97,173.96,0.0001]
[1740249538353,21.48324508,173.97,173.96,0.0001]
[1740249539640,67.2118254,173.97,173.96,0.0001]
[1740249541355,21.48324508,173.97,173.96,0.0001]
[1740249541565,67.2118254,173.97,173.96,0.0001]
[1740249542651,21.48324508,173.97,173.96,0.0001]
[1740249546559,67.2118254,173.97,173.96,0.0001]
[1740249547660,21.48324508,173.97,173.96,0.0001]
[1740249548157,67.2118254,173.97,173.96,0.0001]
[1740249551944,20.0,173.93,173.92,0.03]
[1740249552253,31.43214508,173.93,173.92,0.03]
[1740249553178,37.18154508,173.93,173.92,0.03]
[1740249566976,40.01983797,173.93,173.92,0.03]
[1740249568275,20.0,173.89,173.87,0.0001]
[1740249568454,11.43214508,173.88,173.87,0.0001]
[1740249569280,20.0,173.86,173.85,0.03]
[1740249569576,31.43214508,173.86,173.85,0.03]
[1740249570403,37.18384508,173.86,173.85,0.03]
[1740249572875,56.83349394,173.86,173.85,0.0001]
[1740249573080,57.83349394,173.86,173.85,0.0001]
[1740249573681,56.83349394,173.86,173.85,0.0001]
[1740249573867,37.18384508,173.86,173.85,0.0001]
[1740249576802,38.18384508,173.86,173.85,0.0001]
[1740249576981,37.18384508,173.86,173.85,0.0001]
[1740249581407,38.18384508,173.86,173.85,0.0001]
[1740249581999,37.18384508,173.86,173.85,0.0001]
[1740249583785,38.18384508,173.86,173.85,0.0001]
[1740249584703,57.83349394,173.86,173.85,0.0001]
[1740249584904,19.64964886,173.85,173.79,0.03]
[1740249585104,11.43214508,173.8,173.79,0.03]
[1740249586205,17.18584508,173.8,173.79,0.03]
[1740249594916,25.7534,173.81,173.79,0.03]
[1740249595218,92.43214508,173.8,173.79,0.03]
[1740249597020,98.18584508,173.8,173.79,0.03]
[1740249601202,17.18584508,173.8,173.79,0.03]
[1740249603918,3.86842255,173.82,173.79,0.03]
[1740249604108,25.7534,173.81,173.79,0.03]
[1740249604423,11.43214508,173.8,173.79,0.03]
[1740249605101,17.18584508,173.8,173.79,0.03]
[1740249606102,11.43214508,173.82,173.79,0.03]
[1740249606299,17.18514508,173.82,173.79,0.03]
[1740249606495,11.43214508,173.8,173.79,0.03]
[1740249607710,17.18584508,173.8,173.79,0.03]
[1740249613825,36.83549394,173.8,173.79,0.0001]
[1740249614130,19.64964886,173.79,173.78,0.0001]
[1740249614336,76.81037426,173.79,173.78,0.0001]
[1740249615026,82.56437426,173.79,173.78,0.0001]
[1740249617007,83.56437426,173.79,173.78,0.0001]
[1740249617208,21.0,173.76,173.74,0.03]
[1740249617546,96.67214508,173.75,173.74,0.03]
[1740249618040,15.67214508,173.75,173.74,0.03]
[1740249619223,21.42744508,173.75,173.74,0.03]
[1740249622033,17.18714508,173.77,173.74,0.03]
[1740249622229,11.43214508,173.77,173.74,0.03]
[1740249625241,17.18694508,173.77,173.74,0.03]
[1740249628123,11.43214508,173.76,173.74,0.03]
[1740249629355,17.18724508,173.76,173.74,0.03]
[1740249630133,11.43214508,173.75,173.74,0.03]
[1740249631241,17.18744508,173.75,173.74,0.03]
[1740249635346,36.83709394,173.75,173.74,0.03]
[1740249635736,37.83709394,173.75,173.74,0.03]
[1740249637750,45.58739394,173.75,173.74,0.03]
[1740249638046,20.0,173.72,173.67,0.03]
[1740249638251,11.43214508,173.7,173.67,0.03]
[1740249638638,92.43214508,173.71,173.67,0.03]
[1740249639151,17.18914508,173.7,173.67,0.03]
[1740249639942,92.43214508,173.69,173.67,0.03]
[1740249640145,11.43214508,173.68,173.67,0.03]
[1740249641151,17.18984508,173.68,173.67,0.03]
[1740249641932,11.43214508,173.68,173.67,0.03]
[1740249642843,17.18954508,173.69,173.67,0.03]
[1740249643537,25.7567,173.71,173.67,0.03]
[1740249643753,31.43214508,173.71,173.67,0.03]
[1740249644951,20.0,173.71,173.67,0.03]
[1740249645550,11.43214508,173.72,173.67,11.46214508]
[1740249645859,81.0,173.71,173.67,11.46214508]
[1740249646042,81.0,173.71,173.68,11.43214508]
[1740249646246,81.0,173.71,173.67,11.46214508]
[1740249646867,81.0,173.71,173.67,17.22004508]
[1740249648264,92.43214508,173.71,173.67,0.03]
[1740249648454,98.18884508,173.71,173.67,0.03]
[1740249648658,81.0,173.7,173.67,0.03]
[1740249649563,92.43214508,173.7,173.67,0.03]
[1740249650659,81.0,173.7,173.67,0.03]
[1740249653468,92.43214508,173.7,173.67,0.03]
[1740249654044,11.43214508,173.69,173.67,0.03]
[1740249654253,92.43214508,173.7,173.67,0.03]
[1740249654757,81.0,173.69,173.67,0.03]
[1740249660562,81.0,173.68,173.67,0.03]
[1740249660757,11.43214508,173.71,173.67,0.03]
[1740249662070,17.18854508,173.72,173.67,0.03]
[1740249662376,81.0,173.71,173.67,0.03]
[1740249662583,81.0,173.71,173.68,11.43214508]
[1740249662877,81.0,173.71,173.7,11.43214508]
[1740249663575,81.0,173.71,173.7,17.18914508]
[1740249668478,0.063,173.74,173.7,17.18914508]
[1740249668683,0.063,173.74,173.73,11.43214508]
[1740249670658,0.063,173.74,173.73,17.18814508]
[1740249670890,0.063,173.74,173.73,11.43214508]
[1740249671980,0.063,173.74,173.7,11.43214508]
[1740249674081,0.063,173.74,173.71,11.43214508]
[1740249675485,81.0,173.73,173.71,11.43214508]
[1740249676282,81.0,173.73,173.72,11.43214508]
[1740249678490,81.0,173.73,173.72,17.18844508]
[1740249679069,81.0,173.73,173.72,11.43214508]
[1740249680771,81.0,173.73,173.71,11.43214508]
[1740249681272,81.0,173.73,173.7,0.03]
[1740249681464,81.0,173.73,173.7,11.46214508]
[1740249681664,81.0,173.73,173.71,11.43214508]
[1740249685685,81.0,173.73,173.7,11.46214508]
[1740249685880,81.0,173.72,173.7,0.03]
[1740249687580,86.7564,173.72,173.7,0.03]
[1740249688874,86.7564,173.72,173.71,0.03]
[1740249690400,5.756,173.73,173.71,0.03]
[1740249693609,0.063,173.74,173.71,0.03]
[1740249696996,0.063,173.74,173.71,11.46214508]
[1740249698406,0.063,173.74,173.71,17.21874508]
[1740249698589,0.063,173.74,173.73,11.43214508]
[1740249704409,0.063,173.74,173.73,17.18814508]
[1740249705485,0.063,173.74,173.73,11.43214508]
[1740249711985,0.063,173.74,173.73,11.46214508]
[1740249720414,0.063,173.74,173.73,17.21814508]
[1740249721307,0.063,173.74,173.73,35.86779394]
[1740249727319,0.063,173.74,173.73,36.86779394]
[1740249727706,0.063,173.78,173.76,20.0]
[1740249727916,0.063,173.78,173.77,11.43214508]
[1740249728119,0.063,173.78,173.77,82.56507426]
[1740249728429,81.063,173.85,173.8,20.0]
[1740249728635,81.063,173.85,173.84,11.43214508]
[1740249733333,86.815,173.85,173.82,11.43214508]
[1740249733832,86.815,173.85,173.81,11.43214508]
[1740249734525,98.24714508,173.85,173.79,11.43214508]
[1740249734729,92.43214508,173.84,173.78,11.43214508]
[1740249735811,5.7527,173.83,173.78,11.43214508]
[1740249736012,5.7527,173.83,173.79,11.43214508]
[1740249737934,81.0,173.82,173.79,11.43214508]
[1740249739440,86.7531,173.82,173.79,11.43214508]
[1740249742722,86.7531,173.82,173.77,11.43214508]
[1740249742923,98.18524508,173.82,173.76,11.43214508]
[1740249743730,81.0,173.81,173.76,11.43214508]
[1740249743929,81.0,173.8,173.76,11.43214508]
[1740249744331,81.0,173.8,173.77,11.43214508]
[1740249748034,81.0,173.8,173.77,11.46214508]
[1740249750654,86.7539,173.8,173.77,0.03]
[1740249750948,1.6544,173.79,173.77,0.03]
[1740249752632,81.0,173.8,173.77,0.03]
[1740249753023,81.0,173.8,173.77,11.46214508]
[1740249753642,81.0,173.8,173.78,11.43214508]
[1740249755743,81.0,173.79,173.77,11.46214508]
[1740249759756,81.0,173.79,173.78,11.43214508]
[1740249759962,81.0,173.79,173.77,11.46214508]
[1740249761757,81.0,173.79,173.78,11.43214508]
[1740249762068,81.0,173.79,173.77,11.46214508]
[1740249765657,81.0,173.79,173.78,11.43214508]
[1740249767554,0.063,173.8,173.78,11.43214508]
[1740249767868,0.063,173.8,173.79,11.43214508]
[1740249769467,0.063,173.8,173.78,11.43214508]
[1740249771764,0.063,173.8,173.79,11.43214508]
[1740249772177,0.063,173.8,173.78,11.43214508]
[1740249774666,0.063,173.8,173.77,11.46214508]
[1740249779372,81.0,173.79,173.77,0.03]
[1740249780976,81.0,173.79,173.77,11.46214508]
[1740249783155,81.0,173.79,173.77,0.03]
[1740249785269,81.063,173.79,173.77,0.03]
[1740249786289,94.00784508,173.78,173.77,0.03]
[1740249787579,99.76224508,173.78,173.77,0.03]
[1740249788477,82.5757,173.78,173.77,0.03]
[1740249790279,88.3301,173.78,173.77,0.03]
[1740249790464,99.76224508,173.78,173.77,0.03]
[1740249791269,18.76224508,173.78,173.77,0.03]
[1740249800291,18.76224508,173.78,173.73,0.03]
[1740249800491,11.43214508,173.75,173.73,0.03]
[1740249801193,81.0,173.74,173.73,0.03]
[1740249802994,11.43214508,173.75,173.73,0.03]
[1740249804394,17.18784508,173.74,173.73,0.03]
[1740249804996,5.7557,173.74,173.73,0.03]
[1740249806666,5.7554,173.75,173.73,0.03]
[1740249807075,17.18754508,173.75,173.73,0.03]
[1740249807774,11.43214508,173.77,173.73,0.03]
[1740249807982,18.76224508,173.78,173.73,0.03]
[1740249808396,11.43214508,173.77,173.73,0.03]
[1740249810474,17.18694508,173.77,173.73,0.03]
[1740249810876,11.43214508,173.76,173.73,0.03]
[1740249811078,11.43214508,173.75,173.73,0.03]
[1740249811578,11.43214508,173.74,173.73,0.03]
[1740249812692,17.18784508,173.74,173.73,0.03]
[1740249815403,11.43214508,173.74,173.73,0.03]
[1740249816983,11.43214508,173.75,173.73,0.03]
[1740249818306,17.18754508,173.75,173.73,0.03]
[1740249818705,11.43214508,173.76,173.73,0.03]
[1740249824905,11.43214508,173.77,173.73,0.03]
[1740249826206,11.43214508,173.74,173.73,0.03]
[1740249826589,11.43214508,173.75,173.73,0.03]
[1740249827305,11.43214508,173.76,173.73,0.03]
[1740249829915,81.0,173.75,173.73,0.03]
[1740249834999,92.43214508,173.75,173.73,0.03]
[1740249835707,11.43214508,173.74,173.73,0.03]
[1740249838718,11.49514508,173.77,173.73,0.03]
[1740249839192,17.24994508,173.77,173.73,0.03]
[1740249840796,11.43214508,173.76,173.73,0.03]
[1740249841004,5.8178,173.77,173.73,0.03]
[1740249841005,11.43214508,173.75,173.73,0.03]
[1740249842021,11.43214508,173.74,173.73,0.03]
[1740249842516,17.18784508,173.74,173.73,0.03]
[1740249844199,11.43214508,173.75,173.73,0.03]
[1740249844417,17.18754508,173.75,173.73,0.03]
[1740249844616,5.7554,173.75,173.73,0.03]
[1740249845008,17.18724508,173.76,173.73,0.03]
[1740249845418,5.7551,173.76,173.73,0.03]
[1740249846921,17.18724508,173.76,173.73,0.03]
[1740249848404,5.7551,173.76,173.73,0.03]
[1740249848608,0.063,173.77,173.73,11.46214508]
[1740249849004,0.063,173.77,173.74,11.43214508]
[1740249849219,0.063,173.77,173.73,11.46214508]
[1740249850506,0.063,173.77,173.75,11.43214508]
[1740249851923,81.0,173.76,173.75,11.43214508]
[1740249854806,81.0,173.76,173.74,11.43214508]
[1740249856725,81.0,173.76,173.75,11.43214508]
[1740249857106,0.063,173.77,173.75,11.43214508]
[1740249857307,0.063,173.77,173.76,11.43214508]
[1740249858813,0.063,173.77,173.76,35.83679394]
[1740249861032,0.063,173.77,173.76,36.83679394]
[1740249861731,0.063,173.77,173.76,40.68035486]
[1740249862644,0.063,173.78,173.77,20.64964886]
[1740249862851,0.063,173.78,173.77,78.67316721]
[1740249863216,0.063,173.79,173.78,82.56477426]
[1740249863718,0.063,173.79,173.78,83.56477426]
[1740249865132,0.063,173.8,173.79,28.48734886]
[1740249865321,0.063,173.8,173.79,86.51074314]
[1740249865525,0.063,173.8,173.79,88.85485972]
[1740249866017,0.063,173.8,173.79,86.51074314]
[1740249867016,0.063,173.8,173.79,91.26474314]
[1740249867217,0.063,173.8,173.79,37.47239394]
[1740249868834,0.063,173.8,173.79,85.20097426]
[1740249869014,0.063,173.8,173.79,84.20097426]